[Event "White Rook U14 Final 2019"]
[Site "Sochi"]
[Date "2019.06.06"]
[Round "1.4"]
[White "Putar, Lara"]
[Black "Unurzul, Davaakhuu"]
[Result "1-0"]
[ECO "D77"]
[WhiteElo "1646"]
[BlackElo "1442"]
[Annotator "NA RC"]
[PlyCount "83"]
[EventDate "2019.06.02"]
[EventCountry "RUS"]
[SourceTitle "playchess.com"]
[Source "ChessBase"]
[SourceQuality "1"]
[TimeControl "5400+30"]

1. d4 {[%emt 0:00:00]} Nf6 {[%emt 0:01:02]} 2. c4 {[%emt 0:00:00]} g6 {[%emt 0:00:08]} 3. Nf3 {[%emt 0:00:23]} d5 {[%emt 0:00:25]} 4. g3 {[%emt 0:00:15]} Bg7 {[%emt 0:00:53]} 5. Bg2 {[%emt 0:00:47]} O-O {[%emt 0:00:26]} 6. O-O {[%emt 0:00:52]} Na6 {[%emt 0:00:34]} 7. Nc3 {[%emt 0:03:48]} e6 {[%emt 0:02:05]} 8. Bg5 {[%emt 0:08:15]} c6 {[%emt 0:01:20]} 9. Qd2 {[%emt 0:01:56]} b6 {[%emt 0:05:44]} 10. Rac1 {[%emt 0:05:10]} Bb7 {[%emt 0:01:42]} 11. Ne5 {[%emt 0:07:20]} Qd6 {[%emt 0:03:03]} 12. Bxf6 {[%emt 0:06:00]} Bxf6 {[%emt 0:01:04]} 13. Ng4 {[%emt 0:01:05]} Bg7 {[%emt 0:00:27]} 14. Rfd1 {[%emt 0:02:03]} Rac8 {[%emt 0:06:21]} 15. e4 {[%emt 0:04:28]} Nc7 {[%emt 0:04:31]} 16. e5 {[%emt 0:08:29]} Qe7 {[%emt 0:00:34]} 17. Qf4 {[%emt 0:07:41]} Ne8 {[%emt 0:00:10]} 18. cxd5 {[%emt 0:01:53]} exd5 {[%emt 0:06:25]} 19. Re1 {[%emt 0:05:21]} h5 {[%emt 0:02:23]} 20. Ne3 {[%emt 0:04:47]} f6 {[%emt 0:03:24]} 21. e6 {[%emt 0:01:45]} Nd6 {[%emt 0:19:33]} 22. Rc2 {[%emt 0:08:33]} Qxe6 {[%emt 0:01:35]} 23. Rce2 {[%emt 0:02:42]} Qd7 {[%emt 0:02:44]} 24. h4 {[%emt 0:01:48]} Rce8 {[%emt 0:00:20]} 25. Kh2 {[%emt 0:01:28]} Kh7 {[%emt 0:00:34]} 26. Bh3 {[%emt 0:00:39]} Qd8 {[%emt 0:01:04]} 27. Nc2 {[%emt 0:01:21]} Rxe2 {[%emt 0:00:54]} 28. Rxe2 {[%emt 0:00:01]} g5 {[%emt 0:00:20]} 29. Bf5+ {[%emt 0:01:06]} Kh6 {[%emt 0:00:27]} 30. Qf3 {[%emt 0:00:55]} Nxf5 {[%emt 0:00:48]} 31. Qxf5 {[%emt 0:00:02]} Bc8 {[%emt 0:00:10]} 32. Qd3 {[%emt 0:00:34]} Qd7 {[%emt 0:01:25]} 33. hxg5+ {[%emt 0:01:52]} fxg5 {[%emt 0:00:00]} 34. Ne1 {[%emt 0:02:46]} Qh3+ {[%emt 0:01:50]} 35. Kg1 {[%emt 0:00:00]} b5 {[%emt 0:03:51]} 36. Nd1 {[%emt 0:01:22]} Bf5 {[%emt 0:00:27]} 37. Qe3 {[%emt 0:01:36]} Be4 {[%emt 0:02:45]} 38. f3 {[%emt 0:01:13]} Bxf3 {[%emt 0:01:17]} 39. Nxf3 {[%emt 0:00:41]} Qxg3+ {[%emt 0:00:06]} 40. Rg2 {[%emt 0:00:06]} Qxf3 {[%emt 0:00:09]} 41. Qxg5+ {[%emt 0:00:07]} Kh7 {[%emt 0:00:00]} 42. Qxg7# {[%emt 0:00:00]} 1-0

[Event "White Rook U14 Final 2019"]
[Site "Sochi"]
[Date "2019.06.06"]
[Round "1.7"]
[White "Irgit, Arina"]
[Black "Shirkunov, Alexandr"]
[Result "0-1"]
[ECO "A83"]
[WhiteElo "1256"]
[BlackElo "1557"]
[Annotator "NA RC"]
[PlyCount "134"]
[EventDate "2019.06.02"]
[EventCountry "RUS"]
[SourceTitle "playchess.com"]
[Source "ChessBase"]
[SourceQuality "1"]
[TimeControl "5400+30"]

1. d4 {[%emt 0:00:00]} f5 {[%emt 0:00:10]} 2. e4 {[%emt 0:00:26]} fxe4 {[%emt 0:00:39]} 3. Nc3 {[%emt 0:00:14]} Nf6 {[%emt 0:02:38]} 4. Bg5 {[%emt 0:00:30]} c6 {[%emt 0:04:37]} 5. Bxf6 {[%emt 0:01:34]} exf6 {[%emt 0:00:06]} 6. Nxe4 {[%emt 0:01:05]} d5 {[%emt 0:00:07]} 7. Ng3 {[%emt 0:01:17]} Bd6 {[%emt 0:02:31]} 8. Bd3 {[%emt 0:03:45]} g6 {[%emt 0:01:15]} 9. Nf3 {[%emt 0:02:08]} Kf7 {[%emt 0:12:07]} 10. O-O {[%emt 0:02:11]} Nd7 {[%emt 0:05:26]} 11. c4 {[%emt 0:07:17]} dxc4 {[%emt 0:00:09]} 12. Bxc4+ {[%emt 0:00:25]} Kg7 {[%emt 0:00:06]} 13. d5 {[%emt 0:09:35]} Nb6 {[%emt 0:00:04]} 14. Bb3 {[%emt 0:16:42]} cxd5 {[%emt 0:00:44]} 15. Qd4 {[%emt 0:16:08]} Be6 {[%emt 0:05:04]} 16. Rad1 {[%emt 0:05:25]} Re8 {[%emt 0:02:32]} 17. Rfe1 {[%emt 0:00:35]} Rc8 {[%emt 0:02:04]} 18. Qd3 {[%emt 0:02:38]} Qd7 {[%emt 0:11:28]} 19. Nd4 {[%emt 0:02:57]} Bf7 {[%emt 0:00:56]} 20. Nb5 {[%emt 0:03:00]} Bb8 {[%emt 0:03:41]} 21. Nc3 {[%emt 0:00:37]} Rxe1+ {[%emt 0:01:48]} 22. Rxe1 {[%emt 0:00:13]} Be5 {[%emt 0:02:56]} 23. Nge2 {[%emt 0:01:30]} Nc4 {[%emt 0:02:17]} 24. Bxc4 {[%emt 0:03:34]} Rxc4 {[%emt 0:00:13]} 25. g3 {[%emt 0:01:34]} Qh3 {[%emt 0:07:01]} 26. f4 {[%emt 0:04:03]} Bxf4 {[%emt 0:07:15]} 27. Nxf4 {[%emt 0:02:25]} Rxf4 {[%emt 0:00:03]} 28. Qd2 {[%emt 0:00:25]} Rf5 {[%emt 0:02:05]} 29. Qg2 {[%emt 0:00:19]} Qxg2+ {[%emt 0:00:07]} 30. Kxg2 {[%emt 0:00:09]} Re5 {[%emt 0:00:08]} 31. Rd1 {[%emt 0:00:43]} f5 {[%emt 0:00:23]} 32. Kf3 {[%emt 0:00:14]} Re7 {[%emt 0:00:36]} 33. a3 {[%emt 0:04:37]} Rd7 {[%emt 0:00:12]} 34. Nb5 {[%emt 0:00:19]} a6 {[%emt 0:00:59]} 35. Nd4 {[%emt 0:00:05]} Rc7 {[%emt 0:00:45]} 36. Ke3 {[%emt 0:00:52]} b5 {[%emt 0:00:15]} 37. Kd3 {[%emt 0:00:38]} Kf6 {[%emt 0:00:38]} 38. Rf1 {[%emt 0:00:28]} Kg7 {[%emt 0:03:44]} 39. Re1 {[%emt 0:00:20]} Kf6 {[%emt 0:00:53]} 40. Rf1 {[%emt 0:00:48]} Ke5 {[%emt 0:01:36]} 41. Re1+ {[%emt 0:00:29]} Kd6 {[%emt 0:00:08]} 42. Rd1 {[%emt 0:00:31]} Be8 {[%emt 0:00:54]} 43. Re1 {[%emt 0:00:45]} Re7 {[%emt 0:00:09]} 44. Rc1 {[%emt 0:00:07]} Bd7 {[%emt 0:00:19]} 45. Rd1 {[%emt 0:00:18]} Re4 {[%emt 0:00:48]} 46. Rf1 {[%emt 0:00:23]} h5 {[%emt 0:00:32]} 47. Rf4 {[%emt 0:01:58]} g5 {[%emt 0:01:04]} 48. Rf2 {[%emt 0:01:07]} f4 {[%emt 0:04:06]} 49. gxf4 {[%emt 0:00:36]} Rxf4 {[%emt 0:00:09]} 50. Rxf4 {[%emt 0:00:32]} gxf4 {[%emt 0:00:18]} 51. Nf3 {[%emt 0:00:04]} Bf5+ {[%emt 0:00:55]} 52. Kd4 {[%emt 0:00:37]} Be4 {[%emt 0:00:13]} 53. Nd2 {[%emt 0:00:09]} f3 {[%emt 0:00:23]} 54. Ke3 {[%emt 0:00:05]} Ke5 {[%emt 0:00:09]} 55. Nxf3+ {[%emt 0:00:11]} Bxf3 {[%emt 0:00:54]} 56. Kxf3 {[%emt 0:00:06]} d4 {[%emt 0:00:06]} 57. b4 {[%emt 0:00:10]} Kf5 {[%emt 0:00:32]} 58. h4 {[%emt 0:00:14]} Ke5 {[%emt 0:00:31]} 59. Ke2 {[%emt 0:00:05]} Ke4 {[%emt 0:00:10]} 60. Kd2 {[%emt 0:00:05]} d3 {[%emt 0:00:07]} 61. Kd1 {[%emt 0:00:05]} Ke3 {[%emt 0:00:12]} 62. Ke1 {[%emt 0:00:53]} d2+ {[%emt 0:00:17]} 63. Kd1 {[%emt 0:00:17]} Kd3 {[%emt 0:00:08]} 64. a4 {[%emt 0:00:02]} bxa4 {[%emt 0:00:11]} 65. b5 {[%emt 0:00:03]} a3 {[%emt 0:00:08]} 66. bxa6 {[%emt 0:00:02]} a2 {[%emt 0:00:13]} 67. a7 {[%emt 0:00:00]} a1=R# {[%emt 0:00:02]} 0-1

[Event "White Rook U14 Final 2019"]
[Site "Sochi"]
[Date "2019.06.06"]
[Round "1.8"]
[White "Toledo Flores, Marianna"]
[Black "Ondar, Shuru"]
[Result "1-0"]
[ECO "A12"]
[WhiteElo "1530"]
[BlackElo "1644"]
[Annotator "NA RC"]
[PlyCount "73"]
[EventDate "2019.06.02"]
[EventCountry "RUS"]
[SourceTitle "playchess.com"]
[Source "ChessBase"]
[SourceQuality "1"]
[TimeControl "5400+30"]

1. Nf3 {[%emt 0:00:00]} d5 {[%emt 0:00:00]} 2. e3 {[%emt 0:00:00]} Nf6 {[%emt 0:00:00]} 3. b3 {[%emt 0:00:00]} Bg4 {[%emt 0:00:00]} 4. Be2 {[%emt 0:00:05]} e6 {[%emt 0:00:00]} 5. Bb2 {[%emt 0:00:00]} Nbd7 {[%emt 0:00:00]} 6. d4 {[%emt 0:00:00]} Bd6 {[%emt 0:00:00]} 7. O-O {[%emt 0:00:35]} O-O {[%emt 0:00:47]} 8. c4 {[%emt 0:00:00]} c6 {[%emt 0:00:00]} 9. Nbd2 {[%emt 0:00:13]} Ne4 {[%emt 0:00:57]} 10. Nxe4 {[%emt 0:04:45]} dxe4 {[%emt 0:00:13]} 11. Nd2 {[%emt 0:00:15]} Bxe2 {[%emt 0:00:10]} 12. Qxe2 {[%emt 0:00:08]} f5 {[%emt 0:00:34]} 13. Rfd1 {[%emt 0:01:25]} b6 {[%emt 0:00:41]} 14. a3 {[%emt 0:01:08]} Qe7 {[%emt 0:01:49]} 15. Nb1 {[%emt 0:02:59]} c5 {[%emt 0:01:16]} 16. Nc3 {[%emt 0:02:30]} Rad8 {[%emt 0:09:52]} 17. Nb5 {[%emt 0:05:53]} Bb8 {[%emt 0:01:20]} 18. a4 {[%emt 0:03:07]} a6 {[%emt 0:08:11]} 19. Nc3 {[%emt 0:00:00]} Bc7 {[%emt 0:06:49]} 20. d5 {[%emt 0:06:26]} e5 {[%emt 0:00:52]} 21. a5 {[%emt 0:07:14]} Rb8 {[%emt 0:02:44]} 22. d6 {[%emt 0:01:30]} Bxd6 {[%emt 0:03:24]} 23. Qd2 {[%emt 0:00:07]} bxa5 {[%emt 0:13:40]} 24. Qxd6 {[%emt 0:00:52]} Rf7 {[%emt 0:00:35]} 25. Ra3 {[%emt 0:03:54]} Qg5 {[%emt 0:03:15]} 26. Qc7 {[%emt 0:01:43]} Qe7 {[%emt 0:06:20]} 27. Rxd7 {[%emt 0:00:22]} Qxd7 {[%emt 0:04:36]} 28. Qxb8+ {[%emt 0:00:49]} Rf8 {[%emt 0:00:02]} 29. Qxe5 {[%emt 0:00:14]} Rf7 {[%emt 0:01:34]} 30. Nd5 {[%emt 0:01:02]} h6 {[%emt 0:01:30]} 31. Rxa5 {[%emt 0:02:13]} f4 {[%emt 0:02:04]} 32. Qxe4 {[%emt 0:03:11]} Qg4 {[%emt 0:00:36]} 33. f3 {[%emt 0:00:52]} Qh4 {[%emt 0:00:35]} 34. exf4 {[%emt 0:00:14]} Rf8 {[%emt 0:04:08]} 35. Rxa6 {[%emt 0:01:44]} Qd8 {[%emt 0:01:57]} 36. Ra7 {[%emt 0:00:04]} Rf7 {[%emt 0:07:21]} 37. Qe6 {[%emt 0:00:47]} 1-0

[Event "White Rook U14 Final 2019"]
[Site "Sochi"]
[Date "2019.06.06"]
[Round "1.9"]
[White "Erastov, Semen"]
[Black "Masterskih, Bogdan"]
[Result "1-0"]
[ECO "E01"]
[WhiteElo "2028"]
[BlackElo "1498"]
[Annotator "NA RC"]
[PlyCount "59"]
[EventDate "2019.06.02"]
[EventCountry "RUS"]
[SourceTitle "playchess.com"]
[Source "ChessBase"]
[SourceQuality "1"]
[TimeControl "5400+30"]

1. d4 {[%emt 0:00:00]} d5 {[%emt 0:00:00]} 2. c4 {[%emt 0:00:00]} e6 {[%emt 0:00:00]} 3. Nf3 {[%emt 0:04:06]} Nf6 {[%emt 0:00:00]} 4. g3 {[%emt 0:02:25]} c6 {[%emt 0:00:00]} 5. Nbd2 {[%emt 0:00:08]} Bd6 {[%emt 0:00:00]} 6. Bg2 {[%emt 0:00:00]} Ne4 {[%emt 0:00:00]} 7. O-O {[%emt 0:00:00]} f5 {[%emt 0:00:00]} 8. Qc2 {[%emt 0:00:00]} O-O {[%emt 0:00:00]} 9. b3 {[%emt 0:00:00]} Nd7 {[%emt 0:00:00]} 10. Bb2 {[%emt 0:00:00]} Qf6 {[%emt 0:00:00]} 11. Ne1 {[%emt 0:00:00]} Qh6 {[%emt 0:00:00]} 12. Rd1 {[%emt 0:00:00]} Ndf6 {[%emt 0:00:00]} 13. Nxe4 {[%emt 0:00:00]} fxe4 {[%emt 0:00:00]} 14. Bc1 {[%emt 0:00:00]} Qh5 {[%emt 0:00:00]} 15. f3 {[%emt 0:00:00]} exf3 {[%emt 0:00:00]} 16. exf3 {[%emt 0:00:00]} e5 {[%emt 0:00:00]} 17. dxe5 {[%emt 0:00:00]} Bxe5 {[%emt 0:00:00]} 18. cxd5 {[%emt 0:00:00]} Nxd5 {[%emt 0:00:00]} 19. f4 {[%emt 0:00:00]} Bf5 {[%emt 0:00:00]} 20. Bxd5+ {[%emt 0:00:00]} cxd5 {[%emt 0:00:00]} 21. Qd2 {[%emt 0:00:00]} Bc7 {[%emt 0:00:00]} 22. Qxd5+ {[%emt 0:00:00]} Kh8 {[%emt 0:00:00]} 23. Nf3 {[%emt 0:00:00]} Bb6+ {[%emt 0:00:00]} 24. Kh1 {[%emt 0:00:00]} Rad8 {[%emt 0:00:00]} 25. Qxb7 {[%emt 0:00:00]} Bh3 {[%emt 0:00:00]} 26. Bb2 {[%emt 0:00:00]} Qg4 {[%emt 0:00:00]} 27. Rxd8 {[%emt 0:00:00]} Rxd8 {[%emt 0:00:00]} 28. Ne5 {[%emt 0:00:00]} Qf5 {[%emt 0:00:00]} 29. Nf7+ {[%emt 0:00:00]} Kg8 {[%emt 0:00:00]} 30. Nh6+ {[%emt 0:00:00]} 1-0

[Event "White Rook U14 Final 2019"]
[Site "Sochi"]
[Date "2019.06.06"]
[Round "1.11"]
[White "Ermolaev, Ivan"]
[Black "Komaev, Tamerlan"]
[Result "1-0"]
[ECO "B22"]
[WhiteElo "1776"]
[BlackElo "1265"]
[Annotator "NA RC"]
[PlyCount "72"]
[EventDate "2019.06.02"]
[EventCountry "RUS"]
[SourceTitle "playchess.com"]
[Source "ChessBase"]
[SourceQuality "1"]
[TimeControl "5400+30"]

1. e4 {[%emt 0:00:00]} c5 {[%emt 0:00:00]} 2. c3 {[%emt 0:00:00]} Nf6 {[%emt 0:00:00]} 3. e5 {[%emt 0:00:00]} Nd5 {[%emt 0:00:00]} 4. d4 {[%emt 0:00:00]} cxd4 {[%emt 0:00:00]} 5. Nf3 {[%emt 0:00:00]} Nc6 {[%emt 0:00:32]} 6. cxd4 {[%emt 0:02:38]} g6 {[%emt 0:04:28]} 7. Bc4 {[%emt 0:00:56]} Nb6 {[%emt 0:00:32]} 8. Bb3 {[%emt 0:00:00]} d5 {[%emt 0:01:56]} 9. exd6 {[%emt 0:00:05]} Qxd6 {[%emt 0:01:30]} 10. Nc3 {[%emt 0:00:12]} Bg7 {[%emt 0:04:26]} 11. Be3 {[%emt 0:00:16]} O-O {[%emt 0:01:55]} 12. O-O {[%emt 0:12:53]} Rd8 {[%emt 0:10:55]} 13. Ne4 {[%emt 0:01:22]} Qd7 {[%emt 0:07:17]} 14. Nfg5 {[%emt 0:05:23]} e6 {[%emt 0:01:11]} 15. Nc5 {[%emt 0:01:05]} Qe7 {[%emt 0:16:33]} 16. Nf3 {[%emt 0:04:07]} h6 {[%emt 0:05:15]} 17. Rc1 {[%emt 0:00:02]} Kh7 {[%emt 0:05:02]} 18. Qd2 {[%emt 0:02:43]} Qd6 {[%emt 0:09:34]} 19. Rfd1 {[%emt 0:03:16]} Nd5 {[%emt 0:11:09]} 20. a3 {[%emt 0:01:56]} Nb6 {[%emt 0:05:31]} 21. Ba2 {[%emt 0:01:00]} Nd5 {[%emt 0:00:35]} 22. h4 {[%emt 0:02:27]} Nxe3 {[%emt 0:02:18]} 23. fxe3 {[%emt 0:00:54]} Kg8 {[%emt 0:00:43]} 24. b4 {[%emt 0:00:00]} a5 {[%emt 0:04:11]} 25. b5 {[%emt 0:00:24]} Ne7 {[%emt 0:00:56]} 26. a4 {[%emt 0:01:44]} b6 {[%emt 0:00:45]} 27. Nd3 {[%emt 0:01:44]} Bb7 {[%emt 0:00:00]} 28. Nfe5 {[%emt 0:00:05]} Bd5 {[%emt 0:03:12]} 29. Bxd5 {[%emt 0:01:33]} Nxd5 {[%emt 0:01:34]} 30. Qf2 {[%emt 0:00:35]} Rf8 {[%emt 0:00:57]} 31. Rc6 {[%emt 0:00:07]} Qd8 {[%emt 0:01:10]} 32. Rdc1 {[%emt 0:02:10]} Bf6 {[%emt 0:01:18]} 33. g3 {[%emt 0:00:15]} Bg7 {[%emt 0:00:10]} 34. e4 {[%emt 0:01:45]} Nf6 {[%emt 0:00:29]} 35. Re1 {[%emt 0:04:57]} Rc8 {[%emt 0:00:09]} 36. Kg2 {[%emt 0:02:05]} Rxc6 {[%emt 0:01:16]} 1-0

[Event "White Rook U14 Final 2019"]
[Site "Sochi"]
[Date "2019.06.06"]
[Round "1.12"]
[White "Kekeeva, Sofia"]
[Black "Kuzmina, Varvara"]
[Result "1-0"]
[ECO "D85"]
[WhiteElo "1330"]
[BlackElo "1190"]
[Annotator "NA RC"]
[PlyCount "131"]
[EventDate "2019.06.02"]
[EventCountry "RUS"]
[SourceTitle "playchess.com"]
[Source "ChessBase"]
[SourceQuality "1"]
[TimeControl "5400+30"]

1. d4 {[%emt 0:00:00]} Nf6 {[%emt 0:00:00]} 2. c4 {[%emt 0:00:00]} g6 {[%emt 0:00:00]} 3. Nc3 {[%emt 0:00:00]} d5 {[%emt 0:00:00]} 4. cxd5 {[%emt 0:00:00]} Nxd5 {[%emt 0:00:00]} 5. e4 {[%emt 0:00:00]} Nxc3 {[%emt 0:00:06]} 6. bxc3 {[%emt 0:00:00]} Bg7 {[%emt 0:00:00]} 7. Nf3 {[%emt 0:00:50]} O-O {[%emt 0:00:03]} 8. Be2 {[%emt 0:00:00]} c5 {[%emt 0:00:37]} 9. Rb1 {[%emt 0:02:15]} Nc6 {[%emt 0:01:42]} 10. Be3 {[%emt 0:01:39]} Qa5 {[%emt 0:09:24]} 11. d5 {[%emt 0:11:50]} Bxc3+ {[%emt 0:00:15]} 12. Kf1 {[%emt 0:00:12]} Ne5 {[%emt 0:04:39]} 13. Nxe5 {[%emt 0:01:20]} Bxe5 {[%emt 0:01:03]} 14. Rb5 {[%emt 0:00:06]} Qxa2 {[%emt 0:00:30]} 15. Bxc5 {[%emt 0:00:04]} Bd6 {[%emt 0:03:44]} 16. Bd4 {[%emt 0:02:49]} b6 {[%emt 0:06:02]} 17. Rb1 {[%emt 0:01:16]} Ba6 {[%emt 0:03:32]} 18. Rb2 {[%emt 0:38:13]} Bxe2+ {[%emt 0:00:51]} 19. Rxe2 {[%emt 0:00:51]} Qc4 {[%emt 0:01:49]} 20. g3 {[%emt 0:00:00]} Bc5 {[%emt 0:01:21]} 21. Bxc5 {[%emt 0:04:13]} Qxc5 {[%emt 0:01:12]} 22. Qa4 {[%emt 0:03:32]} a5 {[%emt 0:02:29]} 23. Rc2 {[%emt 0:00:57]} Qb4 {[%emt 0:01:29]} 24. Qxb4 {[%emt 0:00:08]} axb4 {[%emt 0:00:19]} 25. Ke2 {[%emt 0:24:02]} Ra4 {[%emt 0:04:05]} 26. f3 {[%emt 0:04:40]} Rfa8 {[%emt 0:03:00]} 27. Rb1 {[%emt 0:02:03]} f5 {[%emt 0:04:19]} 28. Ke3 {[%emt 0:02:10]} Ra3+ {[%emt 0:01:09]} 29. Ke2 {[%emt 0:00:37]} R8a4 {[%emt 0:01:28]} 30. exf5 {[%emt 0:00:00]} gxf5 {[%emt 0:01:01]} 31. Rcb2 {[%emt 0:00:58]} Ra2 {[%emt 0:03:31]} 32. Ke3 {[%emt 0:00:37]} R2a3+ {[%emt 0:05:58]} 33. Ke2 {[%emt 0:00:25]} Ra5 {[%emt 0:00:53]} 34. Rxb4 {[%emt 0:00:15]} Rxd5 {[%emt 0:00:00]} 35. Rxb6 {[%emt 0:00:30]} Rdd3 {[%emt 0:00:00]} 36. f4 {[%emt 0:00:08]} Rdc3 {[%emt 0:01:22]} 37. R1b2 {[%emt 0:00:45]} Re3+ {[%emt 0:00:00]} 38. Kf2 {[%emt 0:00:00]} Kg7 {[%emt 0:01:18]} 39. Rd2 {[%emt 0:00:56]} Rad3 {[%emt 0:08:33]} 40. Rc2 {[%emt 0:00:33]} h5 {[%emt 0:00:59]} 41. Rcc6 {[%emt 0:00:31]} h4 {[%emt 0:00:30]} 42. Rg6+ {[%emt 0:00:43]} Kf7 {[%emt 0:00:46]} 43. Rg5 {[%emt 0:00:36]} hxg3+ {[%emt 0:00:34]} 44. hxg3 {[%emt 0:00:00]} e6 {[%emt 0:01:34]} 45. Rb7+ {[%emt 0:00:17]} Kf6 {[%emt 0:00:38]} 46. Rbg7 {[%emt 0:00:13]} Rf3+ {[%emt 0:00:55]} 47. Kg2 {[%emt 0:00:02]} Rxg3+ {[%emt 0:01:56]} 48. Rxg3 {[%emt 0:00:10]} Rxg3+ {[%emt 0:04:29]} 49. Rxg3 {[%emt 0:00:06]} e5 {[%emt 0:00:18]} 50. fxe5+ {[%emt 0:00:05]} Kxe5 {[%emt 0:00:04]} 51. Kf3 {[%emt 0:00:06]} f4 {[%emt 0:00:09]} 52. Rg4 {[%emt 0:00:05]} Kf5 {[%emt 0:00:14]} 53. Rxf4+ {[%emt 0:00:04]} Ke5 {[%emt 0:00:07]} 54. Ke3 {[%emt 0:00:06]} Kd5 {[%emt 0:00:09]} 55. Re4 {[%emt 0:00:07]} Kc5 {[%emt 0:00:06]} 56. Rd4 {[%emt 0:00:05]} Kb5 {[%emt 0:00:21]} 57. Kd3 {[%emt 0:00:05]} Kc5 {[%emt 0:00:15]} 58. Kc3 {[%emt 0:00:05]} Kb5 {[%emt 0:00:09]} 59. Rc4 {[%emt 0:00:04]} Ka5 {[%emt 0:00:08]} 60. Rb4 {[%emt 0:00:08]} Ka6 {[%emt 0:00:09]} 61. Rb1 {[%emt 0:00:07]} Ka7 {[%emt 0:00:11]} 62. Kc4 {[%emt 0:00:09]} Ka8 {[%emt 0:00:38]} 63. Kc5 {[%emt 0:00:14]} Ka7 {[%emt 0:00:52]} 64. Kc6 {[%emt 0:00:05]} Ka8 {[%emt 0:00:14]} 65. Kc7 {[%emt 0:00:05]} Ka7 {[%emt 0:00:05]} 66. Ra1# {[%emt 0:00:10]} 1-0

[Event "White Rook U14 Final 2019"]
[Site "Sochi"]
[Date "2019.06.06"]
[Round "1.13"]
[White "Gromov, Nikita"]
[Black "Kurus, Artem"]
[Result "0-1"]
[ECO "A46"]
[WhiteElo "1459"]
[BlackElo "1769"]
[Annotator "NA RC"]
[PlyCount "122"]
[EventDate "2019.06.02"]
[EventCountry "RUS"]
[SourceTitle "playchess.com"]
[Source "ChessBase"]
[SourceQuality "1"]
[TimeControl "5400+30"]

1. d4 {[%emt 0:00:00]} Nf6 {[%emt 0:00:00]} 2. g3 {[%emt 0:00:00]} b5 {[%emt 0:00:20]} 3. Bg2 {[%emt 0:00:00]} d5 {[%emt 0:00:12]} 4. Nf3 {[%emt 0:00:00]} Bb7 {[%emt 0:00:05]} 5. O-O {[%emt 0:00:00]} e6 {[%emt 0:00:48]} 6. Re1 {[%emt 0:00:26]} Be7 {[%emt 0:00:00]} 7. c3 {[%emt 0:00:00]} O-O {[%emt 0:01:32]} 8. Bg5 {[%emt 0:00:29]} Nbd7 {[%emt 0:00:46]} 9. Nbd2 {[%emt 0:00:36]} c5 {[%emt 0:01:55]} 10. Rc1 {[%emt 0:01:58]} Ne4 {[%emt 0:14:43]} 11. Bxe7 {[%emt 0:00:40]} Qxe7 {[%emt 0:00:36]} 12. e3 {[%emt 0:00:54]} f5 {[%emt 0:00:01]} 13. Nxe4 {[%emt 0:00:38]} fxe4 {[%emt 0:04:37]} 14. Nd2 {[%emt 0:03:49]} e5 {[%emt 0:00:33]} 15. Qb3 {[%emt 0:00:08]} Bc6 {[%emt 0:09:20]} 16. Qc2 {[%emt 0:02:16]} Rf6 {[%emt 0:03:55]} 17. Nb3 {[%emt 0:01:53]} exd4 {[%emt 0:02:09]} 18. cxd4 {[%emt 0:02:08]} c4 {[%emt 0:02:36]} 19. Na5 {[%emt 0:01:08]} Raf8 {[%emt 0:00:16]} 20. Nxc6 {[%emt 0:01:10]} Rxc6 {[%emt 0:01:01]} 21. a3 {[%emt 0:00:27]} Rcf6 {[%emt 0:00:02]} 22. Re2 {[%emt 0:01:10]} Nb8 {[%emt 0:08:53]} 23. b4 {[%emt 0:00:47]} Nc6 {[%emt 0:01:30]} 24. Rf1 {[%emt 0:02:50]} a5 {[%emt 0:01:01]} 25. Qb2 {[%emt 0:02:48]} axb4 {[%emt 0:09:05]} 26. axb4 {[%emt 0:03:16]} Nxb4 {[%emt 0:12:26]} 27. Rb1 {[%emt 0:01:04]} Nd3 {[%emt 0:01:16]} 28. Qxb5 {[%emt 0:00:13]} Qf7 {[%emt 0:00:05]} 29. Rf1 {[%emt 0:00:09]} Nxf2 {[%emt 0:00:17]} 30. Ree1 {[%emt 0:01:40]} Qe6 {[%emt 0:01:15]} 31. Ra1 {[%emt 0:03:07]} h6 {[%emt 0:03:48]} 32. Ra5 {[%emt 0:02:37]} Rf5 {[%emt 0:02:38]} 33. h3 {[%emt 0:01:07]} Qd6 {[%emt 0:03:14]} 34. Raa1 {[%emt 0:02:37]} Qxg3 {[%emt 0:02:38]} 35. Rxf2 {[%emt 0:03:35]} Qxf2+ {[%emt 0:00:22]} 36. Kh1 {[%emt 0:05:19]} Rg5 {[%emt 0:00:16]} 37. Rg1 {[%emt 0:00:02]} Qxe3 {[%emt 0:00:29]} 38. Qd7 {[%emt 0:00:10]} Qxd4 {[%emt 0:00:10]} 39. Qe6+ {[%emt 0:00:51]} Kh8 {[%emt 0:00:25]} 40. Qe7 {[%emt 0:00:33]} Qf6 {[%emt 0:00:05]} 41. Qa7 {[%emt 0:00:34]} Qf2 {[%emt 0:00:09]} 42. Qd7 {[%emt 0:00:27]} e3 {[%emt 0:00:33]} 43. Qe7 {[%emt 0:00:00]} e2 {[%emt 0:00:13]} 44. Kh2 {[%emt 0:05:21]} Qxg1+ {[%emt 0:02:03]} 45. Kxg1 {[%emt 0:00:00]} Rf1+ {[%emt 0:00:01]} 46. Kh2 {[%emt 0:00:19]} Rxg2+ {[%emt 0:00:00]} 47. Kxg2 {[%emt 0:01:46]} e1=Q {[%emt 0:00:19]} 48. Qxe1 {[%emt 0:00:00]} Rxe1 {[%emt 0:00:00]} 49. h4 {[%emt 0:00:30]} c3 {[%emt 0:00:00]} 50. Kf2 {[%emt 0:00:00]} c2 {[%emt 0:00:00]} 51. Kxe1 {[%emt 0:00:20]} c1=Q+ {[%emt 0:00:00]} 52. Ke2 {[%emt 0:00:09]} d4 {[%emt 0:00:00]} 53. h5 {[%emt 0:00:24]} Qe3+ {[%emt 0:00:00]} 54. Kd1 {[%emt 0:00:01]} Qf3+ {[%emt 0:00:39]} 55. Kd2 {[%emt 0:00:02]} d3 {[%emt 0:00:00]} 56. Kc3 {[%emt 0:00:00]} Qe4 {[%emt 0:00:13]} 57. Kd2 {[%emt 0:00:31]} Qe2+ {[%emt 0:00:00]} 58. Kc3 {[%emt 0:00:14]} d2 {[%emt 0:00:06]} 59. Kb4 {[%emt 0:00:36]} d1=R {[%emt 0:00:07]} 60. Kc5 {[%emt 0:00:08]} Qc2+ {[%emt 0:00:03]} 61. Kb6 {[%emt 0:00:14]} Rb1+ {[%emt 0:00:04]} 0-1